[Event "Sautron op 15th"]
[Site "Sautron"]
[Date "2015.10.24"]
[Round "8.2"]
[White "Libiszewski, Fabien"]
[Black "Swayams, Mishra"]
[Result "1/2-1/2"]
[ECO "A08"]
[WhiteElo "2523"]
[BlackElo "2444"]
[Annotator "RR"]
[PlyCount "48"]
[EventDate "2015.10.24"]
[EventType "swiss"]
[EventRounds "9"]
[EventCountry "FRA"]
[SourceTitle "CBM 169 Extra"]
[Source "ChessBase"]
[SourceDate "2015.12.18"]
[SourceVersion "1"]
[SourceVersionDate "2015.12.18"]
[SourceQuality "1"]
[TimeControl "40/5400+30:1800+30"]
[WhiteClock "0:35:27"]
[BlackClock "1:21:50"]

1. g3 {[%emt 0:00:00]} d5 {[%emt 0:01:23]} 2. Nf3 {[%emt 0:00:00]} c5 {[%emt 0:
01:00]} 3. Bg2 {[%emt 0:00:03]} Nc6 {[%emt 0:00:21]} 4. O-O {[%emt 0:00:28]} e5
{[%emt 0:00:12]} 5. d3 {[%emt 0:00:17]} Nf6 {[%emt 0:01:09]} 6. Nbd2 {[%emt 0:
01:17]} Be7 {[%emt 0:00:35]} 7. e4 {[%emt 0:00:18]} d4 {[%emt 0:00:29] Une
Petrossian en premier!} 8. Nc4 {[%emt 0:04:42]} Qc7 {[%emt 0:00:16]} 9. a4 {
[%emt 0:00:50]} Be6 {[%emt 0:00:23]} (9... O-O 10. Nh4 Ne8 11. Nf5 Be6 12. b3
Nd6 13. f4 Nxf5 14. exf5 Bxf5 15. fxe5 Be6 16. Bf4 Qd7 17. Qd2 Bd5 18. Rae1 Nb4
19. Bxd5 Nxd5 20. Bg5 Rae8 21. Re4 Nc3 22. Ree1 Nd5 23. Re4 Bxg5 24. Qxg5 Re6
25. Re2 b6 26. Ref2 h6 27. Qh5 Qe7 28. Qf3 Ne3 29. Nxe3 dxe3 30. Qxe3 Rxe5 31.
Qf4 a5 32. Qc4 Qe6 {1/2-1/2 (32) Ni,H (2681)-Zvjaginsev,V (2658) Taiyuan 2007})
10. b3 {[%emt 0:14:43]} Nd7 {[%emt 0:00:10]} 11. Ng5 {[%emt 0:03:22]} Bxg5 {
[%emt 0:01:38]} 12. Bxg5 {[%emt 0:00:03]} f6 {[%emt 0:02:59]} 13. Bd2 {[%emt 0:
04:49]} h5 $5 {[%emt 0:00:02]} 14. f4 {[%emt 0:02:24]} h4 {[%emt 0:01:08]} 15.
f5 {[%emt 0:04:59]} Bxc4 {[%emt 0:02:57]} 16. bxc4 {[%emt 0:08:24]} hxg3 {
[%emt 0:00:02]} 17. hxg3 {[%emt 0:01:19]} a5 $1 {[%emt 0:00:06]} (17... O-O-O
$143 18. a5) 18. g4 {[%emt 0:09:00]} O-O-O {[%emt 0:01:36]} 19. g5 {[%emt 0:01:
23]} Nb4 {[%emt 0:00:05]} 20. g6 {[%emt 0:07:07]} Rh4 {[%emt 0:03:19]} 21. Be1
{[%emt 0:00:43]} Rh6 {[%emt 0:00:05]} 22. Bd2 {[%emt 0:00:07]} Rh4 {[%emt 0:00:
02]} 23. Be1 {[%emt 0:00:10]} Rh6 {[%emt 0:00:02]} 24. Bd2 {[%emt 0:00:05]} Rh4
{[%emt 0:00:11]} 1/2-1/2